bitfinex/quotes_BTCUSD_20241102
["timestamp","ask_amount","ask_price","bid_price","bid_amount"]
[1730571675137,0.60352414,69251.0,69250.0,0.201904]
[1730571680512,0.60352414,69251.0,69250.0,0.101904]
[1730571682606,0.75197939,69251.0,69250.0,0.000821]
[1730571683791,0.85306039,69251.0,69250.0,0.000821]
[1730571685577,0.75197939,69251.0,69250.0,0.000821]
[1730571687843,0.85306039,69251.0,69250.0,0.000821]
[1730571689379,0.85506039,69251.0,69250.0,0.000821]
[1730571689592,0.85306039,69251.0,69250.0,0.000821]
[1730571702524,0.75197939,69251.0,69250.0,0.000821]
[1730571703216,0.75197939,69251.0,69250.0,0.101904]
[1730571709564,0.75197939,69251.0,69250.0,0.000821]
[1730571711952,0.75197939,69251.0,69250.0,0.101904]
[1730571712215,0.66037939,69251.0,69250.0,0.101904]
[1730571712429,0.51192414,69251.0,69250.0,0.101904]
[1730571714699,0.52192414,69251.0,69250.0,0.101904]
[1730571716250,0.51192414,69251.0,69250.0,0.101904]
[1730571716470,0.51692414,69251.0,69250.0,0.101904]
[1730571716690,0.51192414,69251.0,69250.0,0.101904]
[1730571717156,0.51692414,69251.0,69250.0,0.101904]
[1730571717891,0.43272414,69251.0,69250.0,0.101904]
[1730571718135,0.43772414,69251.0,69250.0,0.101904]
[1730571718589,0.43272414,69251.0,69250.0,0.101904]
[1730571718806,0.43772414,69251.0,69250.0,0.101904]
[1730571719041,0.44272414,69251.0,69250.0,0.101904]
[1730571722533,0.61452414,69251.0,69250.0,0.101904]
[1730571722821,0.86333763,69251.0,69250.0,0.000821]
[1730571723739,0.96441863,69251.0,69250.0,0.000821]
[1730571726144,0.97787947,69251.0,69250.0,0.000821]
[1730571726389,0.76644023,69251.0,69250.0,0.000821]
[1730571730286,0.86752123,69251.0,69250.0,0.000821]
[1730571730952,0.76644023,69251.0,69250.0,0.000821]
[1730571732341,0.76644023,69251.0,69250.0,0.101904]
[1730571732553,0.75297939,69251.0,69250.0,0.101904]
[1730571732767,0.76644371,69251.0,69250.0,0.101904]
[1730571732988,0.76644411,69251.0,69250.0,0.101904]
[1730571735932,0.75297939,69251.0,69250.0,0.101904]
[1730571736141,0.76644229,69251.0,69250.0,0.101904]
[1730571737485,0.57617939,69251.0,69250.0,0.101904]
[1730571737691,0.58117939,69251.0,69250.0,0.101904]
[1730571738315,0.57617939,69251.0,69250.0,0.101904]
[1730571738960,0.43272414,69251.0,69250.0,0.101904]
[1730571739646,0.43240018,69251.0,69250.0,0.21226224]
[1730571739877,0.43272414,69251.0,69250.0,0.21226224]
[1730571740303,0.43272414,69251.0,69250.0,0.27714545]
[1730571740523,0.43272414,69251.0,69250.0,0.4367847]
[1730571740736,0.43272414,69251.0,69250.0,0.37190149]
[1730571741630,0.43272414,69251.0,69250.0,0.43676242]
[1730571742072,0.43272414,69251.0,69250.0,0.32640418]
[1730571742264,0.43272414,69251.0,69250.0,0.32639674]
[1730571743184,0.43272414,69251.0,69250.0,0.26154325]
[1730571743468,0.43272414,69251.0,69250.0,0.32639113]
[1730571744118,0.43272414,69251.0,69250.0,0.32634125]
[1730571744947,0.43272414,69251.0,69250.0,0.101904]
[1730571745151,0.43272414,69251.0,69250.0,0.32632595]
[1730571746206,0.43272414,69251.0,69250.0,0.26148169]
[1730571746401,0.43272414,69251.0,69250.0,0.101904]
[1730571746617,0.52682414,69251.0,69250.0,0.101904]
[1730571746838,0.67027939,69251.0,69250.0,0.101904]
[1730571747109,0.74967939,69251.0,69250.0,0.101904]
[1730571748694,0.75467939,69251.0,69250.0,0.000821]
[1730571748910,0.75467939,69251.0,69250.0,0.101904]
[1730571749121,0.75467939,69251.0,69250.0,0.000821]
[1730571749346,0.75467939,69251.0,69250.0,0.101904]
[1730571749996,0.75467939,69251.0,69250.0,0.000821]
[1730571750227,0.8692139,69251.0,69250.0,0.000821]
[1730571751115,0.8712139,69251.0,69250.0,0.000821]
[1730571752277,0.89273769,69251.0,69250.0,0.000821]
[1730571753878,0.85776039,69251.0,69250.0,0.000821]
[1730571754106,0.89272743,69251.0,69250.0,0.000821]
[1730571754538,0.89072743,69251.0,69250.0,0.000821]
[1730571757495,0.89071693,69251.0,69250.0,0.000821]
[1730571758846,0.78963593,69251.0,69250.0,0.000821]
[1730571764520,0.78963593,69251.0,69250.0,0.101904]
[1730571764944,0.76812421,69251.0,69250.0,0.101904]
[1730571765165,0.76812496,69251.0,69250.0,0.101904]
[1730571765815,0.78963833,69251.0,69250.0,0.101904]
[1730571766254,0.78963833,69251.0,69250.0,0.000821]
[1730571766510,0.78963944,69251.0,69250.0,0.000821]
[1730571766735,0.89072044,69251.0,69250.0,0.000821]
[1730571771740,0.89073323,69251.0,69250.0,0.000821]
[1730571773953,0.89273323,69251.0,69250.0,0.000821]
[1730571774468,1.00311444,69251.0,69250.0,0.000821]
[1730571784648,1.00316524,69251.0,69250.0,0.000821]
[1730571785701,1.14164254,69251.0,69250.0,0.000821]
[1730571786180,1.00316524,69251.0,69250.0,0.000821]
[1730571786849,1.02616524,69251.0,69250.0,0.000821]
[1730571788425,0.89077849,69251.0,69250.0,0.000821]
[1730571789520,0.78969749,69251.0,69250.0,0.000821]
[1730571789790,0.89077849,69251.0,69250.0,0.000821]
[1730571794221,0.78969749,69251.0,69250.0,0.000821]
[1730571794422,0.89077849,69251.0,69250.0,0.000821]
[1730571795062,0.78969749,69251.0,69250.0,0.000821]
[1730571795747,0.78969749,69251.0,69250.0,0.101904]
[1730571795748,0.61619749,69251.0,69250.0,0.101904]
[1730571796863,0.61620595,69251.0,69250.0,0.101904]
[1730571797996,0.59465114,69251.0,69250.0,0.101904]
[1730571798462,0.58117939,69251.0,69250.0,0.101904]
[1730571798901,0.59465129,69251.0,69250.0,0.101904]
[1730571799562,0.58965129,69251.0,69250.0,0.101904]
[1730571799779,0.59465129,69251.0,69250.0,0.101904]
[1730571800223,0.58932733,69251.0,69250.0,0.101904]
[1730571800693,0.45119604,69251.0,69250.0,0.101904]
[1730571801607,0.44272414,69251.0,69250.0,0.101904]
[1730571803141,0.53288833,69251.0,69250.0,0.101904]
[1730571803349,0.67134358,69251.0,69250.0,0.000821]
[1730571803822,0.88696443,69251.0,69250.0,0.000821]
[1730571805662,0.88696235,69251.0,69250.0,0.000821]
[1730571815270,0.88896235,69251.0,69250.0,0.000821]
[1730571815478,0.88696235,69251.0,69250.0,0.000821]
[1730571816150,0.88696771,69251.0,69250.0,0.000821]
[1730571816593,0.88697028,69251.0,69250.0,0.000821]
[1730571823261,0.87350494,69251.0,69250.0,0.000821]
[1730571823504,0.88697132,69251.0,69250.0,0.000821]
[1730571827224,0.8869716,69251.0,69250.0,0.000821]
[1730571837532,0.88702427,69251.0,69250.0,0.000821]
[1730571838742,0.78594327,69251.0,69250.0,0.000821]
[1730571841662,0.7643655,69251.0,69250.0,0.000821]
[1730571843431,0.5946655,69251.0,69250.0,0.000821]
[1730571846881,0.58117939,69251.0,69250.0,0.000821]
[1730571847336,0.58966042,69251.0,69250.0,0.000821]
[1730571848287,0.57585543,69251.0,69250.0,0.000821]
[1730571848971,0.57085543,69251.0,69250.0,0.000821]
[1730571849672,0.57585543,69251.0,69250.0,0.000821]
[1730571849907,0.57085543,69251.0,69250.0,0.000821]
[1730571850653,0.57585543,69251.0,69250.0,0.000821]
[1730571851642,0.43240018,69251.0,69250.0,0.000821]
[1730571852320,0.43272414,69251.0,69250.0,0.000821]
[1730571852543,0.65367939,69251.0,69250.0,0.000821]
[1730571852779,0.65867939,69251.0,69250.0,0.000821]
[1730571853013,0.75737939,69251.0,69250.0,0.000821]
[1730571853741,0.77085121,69251.0,69250.0,0.000821]
[1730571854201,0.76585121,69251.0,69250.0,0.000821]
[1730571854437,0.77085121,69251.0,69250.0,0.000821]
[1730571854686,0.87193221,69251.0,69250.0,0.000821]
[1730571857582,0.77085121,69251.0,69250.0,0.000821]
[1730571857806,0.77085207,69251.0,69250.0,0.000821]
[1730571858920,0.77085235,69251.0,69250.0,0.000821]
[1730571861283,0.75737939,69251.0,69250.0,0.000821]
[1730571861514,0.77085376,69251.0,69250.0,0.000821]
[1730571862378,0.87193476,69251.0,69250.0,0.000821]
[1730571862649,0.87393476,69251.0,69250.0,0.000821]
[1730571862886,0.87193476,69251.0,69250.0,0.000821]
[1730571864034,0.87393476,69251.0,69250.0,0.000821]
[1730571864258,0.87193476,69251.0,69250.0,0.000821]
[1730571864482,0.87393476,69251.0,69250.0,0.000821]
[1730571864953,0.87393326,69251.0,69250.0,0.000821]
[1730571865172,0.87193326,69251.0,69250.0,0.000821]
[1730571866092,0.86693326,69251.0,69250.0,0.000821]
[1730571866336,0.87193326,69251.0,69250.0,0.000821]
[1730571867218,0.85846039,69251.0,69250.0,0.000821]
[1730571871622,0.86046039,69251.0,69250.0,0.000821]
[1730571872085,0.87192681,69251.0,69250.0,0.000821]
[1730571872271,0.87192667,69251.0,69250.0,0.000821]
[1730571873621,0.85846039,69251.0,69250.0,0.000821]
[1730571873861,0.87191938,69251.0,69250.0,0.000821]
[1730571877496,0.85846039,69251.0,69250.0,0.000821]
[1730571877709,0.87191911,69251.0,69250.0,0.000821]
[1730571880691,0.87391911,69251.0,69250.0,0.000821]
[1730571881120,0.87191911,69251.0,69250.0,0.000821]
[1730571881346,0.87192457,69251.0,69250.0,0.000821]
[1730571881781,0.87192605,69251.0,69250.0,0.000821]
[1730571887049,0.85846039,69251.0,69250.0,0.000821]
[1730571888271,0.87193791,69251.0,69250.0,0.000821]
[1730571894998,0.87194587,69251.0,69250.0,0.000821]
[1730571900580,0.87394587,69251.0,69250.0,0.000821]
[1730571900800,0.87194587,69251.0,69250.0,0.000821]
[1730571902109,0.77086487,69251.0,69250.0,0.000821]
[1730571902310,0.87194587,69251.0,69250.0,0.000821]
[1730571903290,0.87194661,69251.0,69250.0,0.000821]
[1730571905862,0.58934165,69251.0,69250.0,0.000821]
[1730571906075,0.4458864,69251.0,69250.0,0.000821]
[1730571906535,0.4458864,69251.0,69250.0,0.04411307]
[1730571906741,0.4458864,69251.0,69250.0,0.000821]
[1730571906948,0.43240018,69251.0,69250.0,0.000821]
[1730571907390,0.43272414,69251.0,69250.0,0.16059156]
[1730571907600,0.43272414,69251.0,69250.0,0.000821]
[1730571907819,0.43272414,69251.0,69250.0,0.06574303]
[1730571908570,0.43272414,69251.0,69250.0,0.22545921]
[1730571908746,0.43272414,69251.0,69250.0,0.000821]
[1730571909641,0.43272414,69251.0,69250.0,0.04406764]
[1730571909872,0.4133164,69251.0,69250.0,0.37601348]
[1730571910116,0.4133164,69251.0,69250.0,0.37302978]
[1730571910329,0.4133164,69251.0,69250.0,0.39477167]
[1730571910553,0.4133164,69251.0,69250.0,0.39464711]
[1730571910774,0.4133164,69251.0,69250.0,0.37299492]
[1730571911153,0.4133164,69251.0,69250.0,0.28653852]
[1730571911356,0.4133164,69251.0,69250.0,0.39464711]
[1730571911572,0.4133164,69251.0,69250.0,0.28653852]
[1730571912188,0.4133164,69251.0,69250.0,0.3729643]
[1730571912390,0.4133164,69251.0,69250.0,0.28653852]
[1730571912698,0.4133164,69251.0,69250.0,0.37296209]
[1730571913440,0.4133164,69251.0,69250.0,0.28653852]
[1730571914540,0.4133164,69251.0,69250.0,0.35130981]
[1730571915265,0.41299244,69251.0,69250.0,0.35107851]
[1730571915442,0.4133164,69251.0,69250.0,0.19168063]
[1730571915646,0.80831937,69250.0,69249.0,0.04399367]
[1730571915878,0.80831937,69250.0,69249.0,0.1543821]
[1730571915879,1.22131181,69250.0,69249.0,0.1543821]
[1730571916300,1.22163577,69250.0,69249.0,0.1543821]
[1730571916541,1.22163577,69250.0,69249.0,0.11120943]
[1730571916742,1.22163577,69250.0,69249.0,0.15437492]
[1730571918008,1.22163577,69250.0,69249.0,0.11120943]
[1730571919083,1.22163577,69250.0,69249.0,0.000821]
[1730571922215,1.22131181,69250.0,69249.0,0.000821]
[1730571922330,1.22163577,69250.0,69249.0,0.000821]
[1730571925555,1.22163577,69250.0,69249.0,0.04395563]
[1730571926519,1.22163577,69250.0,69249.0,0.000821]
[1730571928422,1.22131181,69250.0,69249.0,0.000821]
[1730571928596,1.22163577,69250.0,69249.0,0.000821]
[1730571928992,1.22131181,69250.0,69249.0,0.000821]
[1730571929196,1.22163577,69250.0,69249.0,0.000821]
[1730571930035,1.22131181,69250.0,69249.0,0.000821]
[1730571930238,1.22163577,69250.0,69249.0,0.000821]
[1730571930468,1.22131181,69250.0,69249.0,0.000821]
[1730571930662,1.22163577,69250.0,69249.0,0.000821]
[1730571931730,1.22327777,69250.0,69249.0,0.000821]
[1730571932368,1.31497777,69250.0,69249.0,0.000821]
[1730571932579,1.39407777,69250.0,69249.0,0.000821]
[1730571936959,1.22327777,69250.0,69249.0,0.000821]
[1730571938112,1.22295381,69250.0,69249.0,0.000821]
[1730571938546,1.22295381,69250.0,69249.0,0.100821]
[1730571939186,1.22295381,69250.0,69249.0,0.21120943]
[1730571939668,1.22295381,69250.0,69249.0,0.100821]
[1730571941446,1.22295381,69250.0,69249.0,0.14587917]
[1730571944682,1.22295381,69250.0,69249.0,0.04587917]
[1730571944683,1.39867777,69250.0,69249.0,0.04587917]
[1730571944876,1.39835381,69250.0,69249.0,0.04587917]
[1730571945117,1.39867777,69250.0,69249.0,0.04587917]
[1730571945414,1.39867777,69250.0,69249.0,0.000821]
[1730571946250,1.39835381,69250.0,69249.0,0.000821]
[1730571946456,1.39867777,69250.0,69249.0,0.000821]
[1730571947534,1.39835381,69250.0,69249.0,0.000821]
[1730571947964,1.39835381,69250.0,69249.0,0.22506646]
[1730571948623,1.39835381,69250.0,69249.0,0.24665964]
[1730571949688,1.39835381,69250.0,69249.0,0.16028692]
[1730571950410,1.39835381,69250.0,69249.0,0.26825283]
[1730571950627,1.39835381,69250.0,69249.0,0.16028692]
[1730571956717,1.39867777,69250.0,69249.0,0.16028692]
[1730571957138,1.40367777,69250.0,69249.0,0.16028692]
[1730571957347,1.54213302,69250.0,69249.0,0.16028692]
[1730571957728,1.54213302,69250.0,69249.0,0.26849473]
[1730571958209,1.54213302,69250.0,69249.0,0.000821]
[1730571959143,1.54213302,69250.0,69249.0,0.16059871]
[1730571959565,1.54213302,69250.0,69249.0,0.24714771]
[1730571960000,1.54213302,69250.0,69249.0,0.32874296]
[1730571960001,1.53713302,69250.0,69249.0,0.32874296]
[1730571960215,1.53713302,69250.0,69249.0,0.4369522]
[1730571961514,1.53713302,69250.0,69249.0,0.16896525]
[1730571961757,1.53713302,69250.0,69249.0,0.27714541]
[1730571961966,1.53713302,69250.0,69249.0,0.43688018]
[1730571962168,1.39867777,69250.0,69249.0,0.43688018]
[1730571962623,1.39867777,69250.0,69249.0,0.32870002]
[1730571963309,1.39867777,69250.0,69249.0,0.43687655]
[1730571964187,1.39867777,69250.0,69249.0,0.2687323]
[1730571966157,1.39867777,69250.0,69249.0,0.26871804]
[1730571966601,1.54213302,69250.0,69249.0,0.24708299]
[1730571966800,1.54213302,69250.0,69249.0,0.22545075]
[1730571966801,1.55561512,69250.0,69249.0,0.22545075]
[1730571967004,1.55561512,69250.0,69249.0,0.06572665]
[1730571967211,1.55561512,69250.0,69249.0,0.000821]
[1730571967644,1.55061512,69250.0,69249.0,0.000821]
[1730571967868,1.53713302,69250.0,69249.0,0.06572665]
[1730571968499,1.53713302,69250.0,69249.0,0.22544366]
[1730571968642,1.53713302,69250.0,69249.0,0.16053801]
[1730571969057,1.53713302,69250.0,69249.0,0.2470759]
[1730571969734,1.53713302,69250.0,69249.0,0.41522015]
[1730571970352,1.39867777,69250.0,69249.0,0.41522015]
[1730571970721,1.39867777,69250.0,69249.0,0.43681614]
[1730571970833,1.39867777,69250.0,69249.0,0.32866184]
[1730571975254,1.39867777,69250.0,69249.0,0.32868261]
[1730571976483,1.39867777,69250.0,69249.0,0.32869625]
[1730571979903,1.39867777,69250.0,69249.0,0.16896525]
[1730571979904,1.22295381,69250.0,69249.0,0.16896525]
[1730571980112,1.22295381,69250.0,69249.0,0.32870249]
[1730571980552,1.22295381,69250.0,69249.0,0.27086108]
[1730571982937,1.22295381,69250.0,69249.0,0.40067928]
[1730571983147,1.22295381,69250.0,69249.0,0.27086108]
[1730571983387,1.22295381,69250.0,69249.0,0.27302644]
[1730571984267,1.22295381,69250.0,69249.0,0.40284464]
[1730571984493,1.21605381,69250.0,69249.0,0.31809849]
[1730571984789,1.21605381,69250.0,69249.0,0.27302644]
[1730571985027,1.21605381,69250.0,69249.0,0.37302644]
[1730571985277,1.30615381,69250.0,69249.0,0.37086108]
[1730571985493,1.30615381,69250.0,69249.0,0.37302644]
[1730571986359,1.30592485,69250.0,69249.0,0.37302644]
[1730571987030,1.38742485,69250.0,69249.0,0.37302644]
[1730571987265,1.38774881,69250.0,69249.0,0.27089891]
[1730571987499,1.53120406,69250.0,69249.0,0.2492653]
[1730571987711,1.54468368,69250.0,69249.0,0.1627236]
[1730571988162,1.54468383,69250.0,69249.0,0.1627236]
[1730571988854,1.54468383,69250.0,69249.0,0.16055824]
[1730571989296,1.54468383,69250.0,69249.0,0.22546525]
[1730571991628,1.54468383,69250.0,69249.0,0.06572801]
[1730571991821,1.53120406,69250.0,69249.0,0.04409408]
[1730571992063,1.54468201,69250.0,69249.0,0.04409408]
[1730571993383,1.54468201,69250.0,69249.0,0.000821]
[1730571995666,1.53120406,69250.0,69249.0,0.000821]
[1730571995812,1.54467867,69250.0,69249.0,0.000821]
[1730571998341,1.56623208,69250.0,69249.0,0.000821]
[1730571999049,1.56622762,69250.0,69249.0,0.000821]
[1730572001397,1.66731062,69250.0,69249.0,0.000821]
[1730572005256,1.67231062,69250.0,69249.0,0.000821]
[1730572006403,1.67229884,69250.0,69249.0,0.000821]
[1730572006637,1.63728706,69250.0,69249.0,0.000821]
[1730572006853,1.672297,69250.0,69249.0,0.000821]
[1730572008649,1.571214,69250.0,69249.0,0.000821]
[1730572009316,1.672297,69250.0,69249.0,0.000821]
[1730572009534,1.571214,69250.0,69249.0,0.000821]
[1730572009775,1.566214,69250.0,69249.0,0.000821]
[1730572010003,1.56621202,69250.0,69249.0,0.000821]
[1730572011098,1.56121202,69250.0,69249.0,0.000821]
[1730572011323,1.54466866,69250.0,69249.0,0.000821]
[1730572012663,1.53966866,69250.0,69249.0,0.000821]
[1730572013289,1.40121341,69250.0,69249.0,0.11112384]
[1730572013731,1.38774881,69250.0,69249.0,0.11112384]
[1730572014398,1.22962415,69250.0,69249.0,0.11112384]
[1730572014613,1.21614881,69250.0,69249.0,0.11112384]
[1730572015509,1.21614881,69250.0,69249.0,0.17596841]
[1730572015729,1.21614881,69250.0,69249.0,0.11112384]
[1730572022122,1.21582485,69250.0,69249.0,0.11112384]
[1730572022329,1.21582485,69250.0,69249.0,0.1975529]
[1730572022510,1.21582485,69250.0,69249.0,0.3570791]
[1730572023477,1.21614881,69250.0,69249.0,0.3570791]
[1730572025423,1.21614881,69250.0,69249.0,0.35706086]
[1730572028246,1.21614881,69250.0,69249.0,0.37866686]
[1730572029539,1.21582485,69250.0,69249.0,0.37866686]
[1730572029891,1.21582485,69250.0,69249.0,0.27063634]
[1730572034688,1.21582485,69250.0,69249.0,0.27060888]
[1730572035318,1.38872485,69250.0,69249.0,0.27060888]
[1730572036181,1.38872485,69250.0,69249.0,0.37860963]
[1730572036386,1.31052485,69250.0,69249.0,0.37860963]
[1730572036584,1.21582485,69250.0,69249.0,0.37860963]
[1730572042834,1.21582485,69250.0,69249.0,0.27060888]
[1730572044093,1.21582485,69250.0,69249.0,0.37860963]
[1730572044302,1.39172485,69250.0,69249.0,0.27060888]
[1730572044501,1.39172485,69250.0,69249.0,0.3569966]
[1730572044788,1.39172485,69250.0,69249.0,0.11112384]
[1730572045381,1.39172485,69250.0,69249.0,0.17591649]
[1730572045589,1.39172485,69250.0,69249.0,0.11112384]
[1730572046167,1.39172485,69250.0,69249.0,0.17591649]
[1730572047338,1.39172485,69250.0,69249.0,0.3354217]
[1730572048426,1.39172485,69250.0,69249.0,0.33547631]
[1730572048644,1.39172485,69250.0,69249.0,0.27065212]
[1730572048848,1.39172485,69250.0,69249.0,0.33547822]
[1730572049286,1.39172485,69250.0,69249.0,0.27065212]
[1730572050237,1.39172485,69250.0,69249.0,0.35708437]
[1730572051304,1.39172485,69250.0,69249.0,0.27065212]
[1730572052349,1.39172485,69250.0,69249.0,0.16034928]
[1730572056029,1.39172485,69250.0,69249.0,0.27065212]
[1730572056503,1.39172485,69250.0,69249.0,0.37869244]
[1730572058253,1.39172485,69250.0,69249.0,0.27065212]
[1730572062114,1.39172485,69250.0,69249.0,0.11112384]
[1730572062329,1.39172485,69250.0,69249.0,0.27086358]
[1730572065637,1.21582485,69250.0,69249.0,0.27086358]
[1730572066722,1.21582485,69250.0,69249.0,0.40068382]
[1730572068519,1.21582485,69250.0,69249.0,0.27086358]
[1730572068733,1.21582485,69250.0,69249.0,0.40068382]
[1730572069528,1.21582485,69250.0,69249.0,0.27086358]
[1730572070539,1.21582485,69250.0,69249.0,0.27087369]
[1730572071499,1.21582485,69250.0,69249.0,0.27087311]
[1730572072437,1.21582485,69250.0,69249.0,0.44578123]
[1730572073162,1.21582485,69250.0,69249.0,0.31595325]
[1730572073619,1.21582485,69250.0,69249.0,0.44578123]
[1730572074051,1.21582485,69250.0,69249.0,0.54778123]
[1730572074284,1.21582485,69250.0,69249.0,0.54578123]
[1730572074512,1.21582485,69250.0,69249.0,0.41595325]
[1730572076066,1.21582485,69250.0,69249.0,0.41594049]
[1730572080607,1.21582485,69250.0,69249.0,0.41592688]
[1730572083861,1.21582485,69250.0,69249.0,0.41591831]
[1730572088555,1.21582485,69250.0,69249.0,0.41590485]
[1730572094576,1.21582485,69250.0,69249.0,0.44478485]
[1730572094787,1.21582485,69250.0,69249.0,0.41590485]
[1730572100338,1.21582485,69250.0,69249.0,0.41790485]
[1730572100540,1.21582485,69250.0,69249.0,0.41590485]
[1730572101186,1.21582485,69250.0,69249.0,0.43890485]
[1730572101378,1.21582485,69250.0,69249.0,0.44090485]
[1730572102141,1.21582485,69250.0,69249.0,0.43890485]
[1730572102346,1.21582485,69250.0,69249.0,0.43892519]
[1730572102991,1.21582485,69250.0,69249.0,0.57738044]
[1730572106785,1.21582485,69250.0,69249.0,0.57938044]
[1730572107591,1.21582485,69250.0,69249.0,0.57738044]
[1730572116985,1.30892485,69250.0,69249.0,0.57738044]
[1730572118385,1.30892485,69250.0,69249.0,0.76904589]
[1730572129788,1.30892485,69250.0,69249.0,0.76932769]
[1730572132919,1.30892485,69250.0,69249.0,0.41765923]
[1730572137687,1.30892485,69250.0,69249.0,0.57751114]
[1730572142669,1.38452485,69250.0,69249.0,0.57751114]
[1730572145287,1.38452485,69250.0,69249.0,0.41765923]
[1730572146814,1.38452485,69250.0,69249.0,0.41965923]
[1730572147674,1.38452485,69250.0,69249.0,0.57950658]
[1730572150405,1.38452485,69250.0,69249.0,0.57951091]
[1730572151504,1.38452485,69250.0,69249.0,0.57751091]
[1730572155105,1.38452485,69250.0,69249.0,0.57749777]
[1730572159560,1.38452485,69250.0,69249.0,0.57747509]
[1730572163768,1.38452485,69250.0,69249.0,0.43901984]
[1730572163919,1.38452485,69250.0,69249.0,0.60779479]
[1730572164513,1.38452485,69250.0,69249.0,0.41601984]
[1730572166925,1.38452485,69250.0,69249.0,0.60779479]
[1730572168716,1.38452485,69250.0,69249.0,0.60776875]
[1730572170698,1.38452485,69250.0,69249.0,0.74107159]
[1730572170890,1.38452485,69250.0,69249.0,1.00103424]
[1730572171093,1.38452485,69250.0,69249.0,0.8907314]
[1730572172145,1.38452485,69250.0,69249.0,1.00103424]
[1730572172941,1.38452485,69250.0,69249.0,0.99903424]
[1730572173375,1.38452485,69250.0,69249.0,0.88872289]
[1730572175936,1.38452485,69250.0,69249.0,0.89072289]
[1730572179371,1.38452485,69250.0,69249.0,0.88872289]
[1730572180282,1.38452485,69250.0,69249.0,0.78598389]
[1730572181083,1.38452485,69250.0,69249.0,0.71377689]
[1730572182635,1.38452485,69250.0,69249.0,0.71377005]
[1730572185468,1.38452485,69250.0,69249.0,0.57744605]
[1730572185729,1.38452485,69250.0,69249.0,0.71375005]
[1730572189907,1.38452485,69250.0,69249.0,0.68336505]
[1730572196291,1.38452485,69250.0,69249.0,0.57744605]
[1730572196921,1.38452485,69250.0,69249.0,0.41765923]
[1730572197967,1.38452485,69250.0,69249.0,0.5774561]
[1730572198940,1.38452485,69250.0,69249.0,0.7025081]
[1730572199361,1.38452485,69250.0,69249.0,0.5774561]
[1730572199567,1.38452485,69250.0,69249.0,0.6912071]
[1730572200566,1.38452485,69250.0,69249.0,0.5774561]
[1730572200863,1.38452485,69250.0,69249.0,0.41765923]
[1730572201243,1.38452485,69250.0,69249.0,0.64335923]
[1730572201940,1.38452485,69250.0,69249.0,0.75366207]
[1730572202136,1.21582485,69250.0,69249.0,0.75566207]
[1730572202559,1.39352485,69250.0,69249.0,0.53314623]
[1730572203568,1.39352485,69250.0,69249.0,0.41765923]
[1730572204044,1.39352485,69250.0,69249.0,0.98458907]
[1730572204428,1.39352485,69250.0,69249.0,0.87428623]
[1730572205652,1.39352485,69250.0,69249.0,0.84289923]
[1730572206983,1.39352485,69250.0,69249.0,0.41765923]
[1730572207340,1.39352485,69250.0,69249.0,0.53023323]
[1730572207539,1.39352485,69250.0,69249.0,0.41765923]
[1730572209778,1.39352485,69250.0,69249.0,0.27920398]
[1730572209981,1.39352485,69250.0,69249.0,0.25620398]
[1730572210506,1.39352485,69250.0,69249.0,0.000821]
[1730572210728,1.39352485,69250.0,69249.0,0.16063807]
[1730572211858,1.39352485,69250.0,69249.0,0.26063807]
[1730572213587,1.39352485,69250.0,69249.0,0.41605824]
[1730572214139,1.39352485,69250.0,69249.0,0.37094091]
[1730572218037,1.39352485,69250.0,69249.0,0.37100926]
[1730572221216,1.39352485,69250.0,69249.0,0.37084593]
[1730572226647,1.39352485,69250.0,69249.0,0.41589498]
[1730572228945,1.39352485,69250.0,69249.0,0.54919782]
[1730572228946,1.21582485,69250.0,69249.0,0.54919782]
[1730572229163,1.21582485,69250.0,69249.0,0.55119782]
[1730572230547,1.21582485,69250.0,69249.0,0.69432911]
[1730572231392,1.21582485,69250.0,69249.0,1.36312962]
[1730572234788,1.21582485,69250.0,69249.0,1.36302037]
[1730572237906,1.21582485,69250.0,69249.0,1.36802037]
[1730572239301,1.21582485,69250.0,69249.0,1.36801027]
[1730572239740,1.21582485,69250.0,69249.0,1.18352327]
[1730572240402,1.21582485,69250.0,69249.0,0.96445843]
[1730572240403,1.31442485,69250.0,69249.0,0.96445843]
[1730572240635,1.39272485,69250.0,69249.0,0.96445843]
[1730572243440,1.39272485,69250.0,69249.0,0.96645843]
[1730572244079,1.39272485,69250.0,69249.0,0.7755755]
[1730572244288,1.39272485,69250.0,69249.0,1.2533135]
[1730572245688,1.39272485,69250.0,69249.0,1.36361634]
[1730572245887,1.21582485,69250.0,69249.0,1.36361634]
[1730572250669,1.21582485,69250.0,69249.0,1.36861634]
[1730572251800,1.21582485,69250.0,69249.0,1.2583135]
[1730572252766,1.31012485,69250.0,69249.0,1.2533135]
[1730572252998,1.38752485,69250.0,69249.0,1.2513135]
[1730572253200,1.38752485,69250.0,69249.0,1.23466182]
[1730572253405,1.38752485,69250.0,69249.0,1.23666182]
[1730572256670,1.38752485,69250.0,69249.0,1.23198578]
[1730572256864,1.38752485,69250.0,69249.0,1.23666182]
[1730572257090,1.38752485,69250.0,69249.0,1.34696466]
[1730572257298,1.38752485,69250.0,69249.0,1.15534504]
[1730572257701,1.21582485,69250.0,69249.0,1.15535117]
[1730572258321,1.21582485,69250.0,69249.0,1.11530212]
[1730572258322,0.71914283,69250.0,69249.0,1.11530212]
[1730572259840,0.71914283,69250.0,69249.0,0.65424712]
[1730572259999,0.71914283,69250.0,69249.0,2.78362912]
[1730572260626,0.71914283,69250.0,69249.0,2.39043712]
[1730572260827,0.89084283,69250.0,69249.0,1.38485028]
[1730572261460,0.89084283,69250.0,69249.0,1.38484916]
[1730572261657,0.89084283,69250.0,69249.0,0.77405616]
[1730572261860,0.89084283,69250.0,69249.0,0.51394316]
[1730572263207,0.89084283,69250.0,69249.0,0.53694316]
[1730572265852,0.89084283,69250.0,69249.0,0.53697073]
[1730572267883,0.89084283,69250.0,69249.0,0.53229469]
[1730572268112,0.89084283,69250.0,69249.0,0.53697073]
[1730572268521,0.89084283,69250.0,69249.0,0.58207452]
[1730572269133,0.89084283,69250.0,69249.0,0.43894323]
[1730572269338,0.89084283,69250.0,69249.0,0.44361927]
[1730572269534,0.89084283,69250.0,69249.0,0.28390367]
[1730572270311,0.89084283,69250.0,69249.0,0.28139237]
[1730572270545,0.89084283,69250.0,69249.0,0.28606841]
[1730572271523,0.89084283,69250.0,69249.0,0.44585967]
[1730572272403,0.89084283,69250.0,69249.0,0.44118363]
[1730572272618,0.89084283,69250.0,69249.0,0.28606841]
[1730572273466,0.89084283,69250.0,69249.0,0.28139237]
[1730572273676,0.89084283,69250.0,69249.0,0.28606841]
[1730572275408,0.89084283,69250.0,69249.0,0.31493841]
[1730572275618,0.89084283,69250.0,69249.0,0.28806841]
[1730572275817,0.89084283,69250.0,69249.0,0.28606841]
[1730572277521,0.89084283,69250.0,69249.0,0.63770631]
[1730572278941,0.89084283,69250.0,69249.0,0.63303027]
[1730572279379,0.89084283,69250.0,69249.0,0.63770631]